{"text_format":"1","workbook":"xlsx","n_sheets":1,"sheets":["Ark1"],"not_rendered":{"charts":0,"images":8,"macros":1,"external_links":0,"defined_names":0,"comments":0,"pivot_tables":0},"unopened":[],"bounds":{"document_bytes":16777216,"sheet_cells":100000,"rows_first":2000,"rows_last":500,"rows_between":2000,"halvings":0,"cell_chars":16384,"cell_head_chars":4096},"cells_cut":0,"cells_raw":0,"read":"whole","date_system":"1900"}

{"sheet":"Ark1","index":0,"n_rows":102,"n_cols":10,"rows_kept":102,"cut":false,"hidden":false,"merged":[[101,2,101,4],[99,2,99,4],[101,5,101,6],[96,5,96,6],[97,5,97,6],[99,5,99,6],[100,2,100,4],[100,5,100,6],[98,2,98,4],[98,5,98,6],[23,2,23,7],[10,2,10,8],[11,2,11,8],[12,4,12,5],[13,2,16,2],[13,3,16,3],[27,2,27,9],[28,2,28,9],[29,2,29,9],[30,2,30,9],[45,3,45,8],[46,2,46,8],[47,2,47,9],[58,4,58,5],[50,2,50,9],[51,2,51,9],[52,2,52,9],[53,2,53,9],[54,4,54,5],[54,7,54,8],[9,2,9,8],[1,2,1,8],[2,2,2,8],[3,2,3,8],[8,2,8,8],[5,2,5,8],[96,2,96,4],[97,2,97,4],[65,2,65,9],[66,2,66,9],[82,2,82,3],[91,2,91,6],[92,2,92,6],[93,2,93,6],[94,2,94,6],[95,5,95,6],[95,2,95,4],[84,2,84,6],[77,2,77,7],[78,2,78,7],[79,2,79,7],[83,2,83,3],[72,2,72,8],[80,2,80,3],[80,5,80,6],[81,2,81,3],[73,2,73,9],[76,2,76,7],[58,7,58,8],[59,2,59,8],[67,7,67,8],[62,2,62,9],[63,2,63,9],[64,2,64,9]]}
[]
[]
[null,null,"Tilskuddskalkulator 2021 "]
[null,null,"Vet du hvor mye din kommune får i tilskudd fra IMDi i 2021? Denne kalkulatoren hjelper deg å beregne tilskuddene knyttet til flyktninger og innvandrere for 2021 med satser i statsbudsjett for 2021. "]
[]
[null,null,"For å bruke kalkulatoren, trykk først på knappen \"Aktiver innhold\" helt øverst, så vil det komme opp en dialogboks, trykk deretter på \"Ja\". Dette er for å aktivere Makroer. Gå til de aktuelle tilskuddsordninger for å se hvilke satser som gjelder i år og sett inn antall personer som utløser de ulike satsene i kolonnen som heter Sett inn antall. Ved behov for mer informasjon om det enkelte tilskudd, kan man trykke på knappen          , og få ytterligere informasjon om satsene. For å se totalt tilskuddsbeløp for ordningene samlet, trykk \"Gå til oppsummeringstabellen\" nederst. Du kan nullstille beløp og antall i en bestemt tabell ved å trykke på \"Nullstill denne tabellen\" ved siden av i tabellen, eller i hele arket alt ved å trykke på nullstillknappen nederst på arket. For å estimere deling av tilskudd mellom kommuner er det også mulig å legge inn desimaltall, husk å bruke komma om du vil legge inn desimaltall. Delingsnøkler finnes i de respektive rundskrivene."]
[null,null,"Har du spørsmål til IMDi? Send e-post til post@imdi.no med emnet \"Tilskuddskalkulator\"."]
[]
[null,null,"Integreringstilskudd, eldretilskudd og barnehagetilskudd"]
[null,null,"Ordningen gjelder i all hovedsak flyktninger og deres familiegjenforente som ble bosatt i perioden 2016-2020. Det er forskjellige satser som gjelder avhengig av hvilket år personene ble bosatt for første gang, og hvilken kategori de tilhører. "]
[null,null,"Les mer om ordningen på imdi.no."]
[]
[null,null,"Tilskuddsår"," Bosettingsår","Kategori",null,"Sats","Sett inn antall","Tilskuddsbeløp"]
[null,null,"Integreringstilskudd år 1",2021,"Enslige voksne",null,241000,null,{"$f":"G14*H14","v":0}]
[null,null,null,null,"Voksne",null,194300,null,{"$f":"G15*H15","v":0}]
[null,null,null,null,"Enslige mindreårige",null,187000,null,0]
[null,null,null,null,"Barn",null,194300,null,0]
[null,null,"Integreringstilskudd år 2 ",2020,"Alle flyktninger",null,249000,null,0]
[null,null,"Integreringstilskudd år 3 ",2019,"Alle flyktninger",null,177300,null,0]
[null,null,"Integreringstilskudd år 4 ",2018,"Alle flyktninger",null,88000,null,0]
[null,null,"Integreringstilskudd år 5 ",2017,"Alle flyktninger",null,72000,null,0]
[null,null,"Barnehagetilskudd ",2021,"Barn 0-5 år",null,27100,null,0]
[null,null,"Eldretilskudd ",2021,"Voksne over 60 år",null,176000,null,0]
[null,null,null,null,null,null,null,null,{"$f":"SUM(I14:I23)","v":0}]
[]
[]
[]
[null,null,"Særskilt tilskudd for bosetting av enslige mindreårige flyktninger "]
[null,null,"Enslige mindreårige (EM) er en fellesbetegnelse for alle barn og unge under 18 år som kommer til landet uten foreldre eller andre voksne med foreldreansvar i Norge. Det er forskjellige satser som gjelder avhengig av barnets alder og bosettingstidspunkt. Tilskuddet utbetales til og med året den enslige mindreårige fyller 20 år."]
[null,null,"Les mer om ordningen på imdi.no."]
[]
[null,null,"Bosettingstidspunkt","Lav sats","Sett inn antall",null,"Høy sats","Sett inn antall",null,"Tilskuddsbeløp"]
[null,null,"Før 2021",705000,null,null,1118000,null,null,{"$f":"D33*E33+G33*H33","v":0}]
[null,null,"2021-01-01",{"$f":"D33","v":705000},null,null,{"$f":"G33","v":1118000},null,null,0]
[null,null,"2021-02-01",{"$f":"$D$33*11/12","v":646250},null,null,{"$f":"$G$33*11/12","v":1024833.3333333334},null,null,0]
[null,null,"2021-03-01",{"$f":"$D$33*10/12","v":587500},null,null,{"$f":"$G$33*10/12","v":931666.66666666663},null,null,0]
[null,null,"2021-04-01",{"$f":"$D$33*9/12","v":528750},null,null,{"$f":"$G$33*9/12","v":838500},null,null,0]
[null,null,"2021-05-01",{"$f":"$D$33*8/12","v":470000},null,null,{"$f":"$G$33*8/12","v":745333.33333333337},null,null,0]
[null,null,"2021-06-01",{"$f":"$D$33*7/12","v":411250},null,null,{"$f":"$G$33*7/12","v":652166.66666666663},null,null,0]
[null,null,"2021-07-01",{"$f":"$D$33*6/12","v":352500},null,null,{"$f":"$G$33*6/12","v":559000},null,null,0]
[null,null,"2021-08-01",{"$f":"$D$33*5/12","v":293750},null,null,{"$f":"$G$33*5/12","v":465833.33333333331},null,null,0]
[null,null,"2021-09-01",{"$f":"$D$33*4/12","v":235000},null,null,{"$f":"$G$33*4/12","v":372666.66666666669},null,null,0]
[null,null,"2021-10-01",{"$f":"$D$33*3/12","v":176250},null,null,{"$f":"$G$33*3/12","v":279500},null,null,0]
[null,null,"2021-11-01",{"$f":"$D$33*2/12","v":117500},null,null,{"$f":"$G$33*2/12","v":186333.33333333334},null,null,0]
[null,null,"2021-12-01",{"$f":"$D$33*1/12","v":58750},null,null,{"$f":"$G$33*1/12","v":93166.666666666672},null,null,0]
[]
[null,null,"Totalt",null,null,null,null,null,null,{"$f":"SUM(J33:J46)","v":0}]
[]
[]
[]
[null,null,"Tilskudd til opplæring i norsk og samfunnskunnskap for voksne innvandrere"]
[null,null,"Kommunen mottar dette tilskuddet for voksne innvandrere som bor i kommunen og som har rett og plikt til opplæring i norsk og samfunnskunnskap. Tilskuddet utbetales per person i målgruppen (persontilskudd), som regel over tre år. Kommunene som har 150 personer eller færre i målgruppen, får også et grunntilskudd."]
[null,null,"Les mer om ordningen på imdi.no."]
[]
[null,null,"Tilskudd*","Lav sats","Antall personer i kommunen med lav sats",null,"Høy sats","Antall personer i kommunen med høy sats",null,"Tilskuddsbeløp"]
[null,null,"Persontilskudd år 1 (2021)",14800,null,null,34800,null,null,{"$f":"D56*E56+G56*H56","v":0}]
[null,null,"Persontilskudd år 2 (2020)",26700,null,null,69100,null,null,{"$f":"D57*E57+G57*H57","v":0}]
[null,null,"Persontilskudd år 3 (2019)",16600,null,null,47900,null,null,0]
[null,null,"Grunntilskudd for 2021",204700,"Velg beløpet for Grunntilskudd her",null,610000,5,null,"Velg beløpet for Grunntilskudd her"]
[null,null,"Totalt",null,null,null,null,null,null,{"$f":"SUM(J56:J59)","v":0}]
[null,null,"*I kolonnen ‘tilskudd’ indikerer årstallene i parentes det året som personene som utløser persontilskuddet kom inn i målgruppen.",null,null,null,null,null,null,{"$f":"SUM(E56:E58)+SUM(H56:H58)","v":0}]
[]
[]
[null,null,"Tilskudd for bosetting av personer med nedsatt funksjonsevne og/eller atferdsvansker"]
[null,null,"Kommunen mottar dette tilskuddet ved bosetting av flyktninger med alvorlige, kjente funksjonshemminger og/eller atferdsvansker.Tilskuddsordningen skal dekke ekstraordinære kommunale utgifter som følger av bosetting av flyktninger med nedsatt fysisk og/eller psykisk funksjonsevne; samt personer med voldelig adferd og rusproblemer eller alvorlige atferdsproblemer. Satsen avhenger av når vedkommende er bosatt. Ordningen består av to typer tilskudd: Tilskudd 1 og Tilskudd 2. Tilskudd 1 er et engangstilskudd og kan tildeles i enten første eller andre bosettingsår. Tilskudd 2 kan tildeles årlig i integreringstilskuddsperioden, det vil si i maksimalt 5 år. "]
[null,null,"Les mer om ordningen på imdi.no."]
[]
[null,null,"Bosettingstidspunkt","Tilskudd 1","Antall personer med tilskudd 1",null,"Tilskudd 2 (maks. sats)","Stipulert inntekt for tilskudd 2",null,"Tilskuddsbeløp T1 +T2"]
[null,null,2021,196400,null,null,1430000,null,null,{"$f":"D69*E69+H69","v":0}]
[null,null,2020,190500,null,null,1361000,null,null,{"$f":"D70*E70+H70","v":0}]
[null,null,2019,190800,null,null,1320000,null,null,0]
[null,null,2018,190800,null,null,1235000,null,null,0]
[null,null,"Totalt",null,null,null,null,null,null,{"$f":"SUM(J69:J72)","v":0}]
[]
[]
[]
[null,null,"Tilskuddsordning til opplæring i norsk og samfunnskunnskap for asylsøkarar i mottak 2021\n "]
[null,null,"Kommuner som tilbyr opplæring til asylsøkere i norsk, norsk kultur og norske verdier (NKNV) eller samfunnskunnskap. Tilskuddene utbetales per person som er i målgruppa for ordningene."]
[null,null,"Les mer om ordningen på imdi.no."]
[]
[null,null,"Kategori",null,"Sats","Antall personer i målgruppen",null,"Tilskuddsbeløp"]
[null,null,"Opplæring i norsk for asysøkere",null,14700,null,null,{"$f":"E82*F82","v":0}]
[null,null,"Opplæring i norsk kultur og norske verdier",null,4000,null,null,{"$f":"E83*F83","v":0}]
[null,null,"Opplæring i samfunnskunnskap",null,2000,null,null,{"$f":"E84*F84","v":0}]
[null,null,"Totalt",null,null,null,null,{"$f":"SUM(H82:H84)","v":0}]
[]
[]
[]
[]
[]
[]
[null,null,"Oppsummeringstabell"]
[null,null,"Denne tabellen oppsummerer sum av beregnet tilskudd til kommunen i 2021."]
[null,null,"Les mer om IMDis tilskuddsordninger på imdi.no."]
[]
[null,null,"Tilskuddsordning"]
[null,null,"Integreringstilskudd ",null,null,{"$f":"I24","v":0}]
[null,null,"Særskilt tilskudd for bosetting av enslige mindreårige flyktninger",null,null,{"$f":"J47","v":0}]
[null,null,"Tilskudd til opplæring i norsk og samfunnskunnskap for voksne innvandrere ",null,null,{"$f":"J60","v":0}]
[null,null,"Tilskudd for bosetting av personer med nedsatt funksjonsevne og/eller atferdsvansker",null,null,{"$f":"J73","v":0}]
[null,null,"Tilskudd til opplæring i norsk, norsk kultur og norske verdier for asylsøkere",null,null,{"$f":"H85","v":0}]
[null,null,"Totalt",null,null,{"$f":"SUM(F97:F101)","v":0}]